[Event "Early-Titled-Tuesday-Blitz-March-12-2024"]
[Site "Chess.com"]
[Date "2024.03.12"]
[Round "8"]
[White "MatthewG-p4p"]
[Black "Maxfan2008"]
[Result "1-0"]
[WhiteElo "2888"]
[BlackElo "2623"]
[TimeControl "180+1"]
[EndTime "9:26:54 PDT"]
[Termination "MatthewG-p4p won by resignation"]

1. e4 {[%clk 0:03:00.9]} 1... c5 {[%clk 0:02:59.8]} 2. c3 {[%clk 0:03:00.9]}
2... d5 {[%clk 0:02:59.7]} 3. exd5 {[%clk 0:03:01.8]} 3... Qxd5 {[%clk
0:03:00.6]} 4. d4 {[%clk 0:03:02.4]} 4... Nc6 {[%clk 0:03:01]} 5. Nf3 {[%clk
0:03:02.8]} 5... Bg4 {[%clk 0:03:01.5]} 6. dxc5 {[%clk 0:03:03]} 6... Qxd1+
{[%clk 0:02:56.4]} 7. Kxd1 {[%clk 0:03:03.9]} 7... e5 {[%clk 0:02:57]} 8. b4
{[%clk 0:03:03.9]} 8... e4 {[%clk 0:02:56.8]} 9. h3 {[%clk 0:03:04.4]} 9... Bh5
{[%clk 0:02:57.2]} 10. g4 {[%clk 0:03:04.8]} 10... exf3 {[%clk 0:02:57.5]} 11.
gxh5 {[%clk 0:03:05.3]} 11... Nf6 {[%clk 0:02:54.5]} 12. Kc2 {[%clk 0:02:59.3]}
12... O-O-O {[%clk 0:02:48.2]} 13. Nd2 {[%clk 0:02:47.1]} 13... a5 {[%clk
0:02:39.6]} 14. a3 {[%clk 0:02:44.7]} 14... Ne5 {[%clk 0:02:29.9]} 15. Nc4
{[%clk 0:02:42.5]} 15... Nxc4 {[%clk 0:02:25.9]} 16. Bxc4 {[%clk 0:02:43.4]}
16... Ne4 {[%clk 0:02:05.5]} 17. Be3 {[%clk 0:02:38.3]} 17... Be7 {[%clk
0:02:04.9]} 18. Bxf7 {[%clk 0:01:44.9]} 18... Bf6 {[%clk 0:01:59.5]} 19. Bf4
{[%clk 0:01:35.1]} 19... Kd7 {[%clk 0:01:16.6]} 20. Bd5 {[%clk 0:01:23.9]} 20...
Nxc3 {[%clk 0:01:16.6]} 21. Bxb7 {[%clk 0:01:16.2]} 21... Ne2 {[%clk 0:01:16.5]}
22. Rad1+ {[%clk 0:01:16.2]} 22... Ke6 {[%clk 0:01:15.5]} 23. Be3 {[%clk
0:01:02.8]} 23... axb4 {[%clk 0:00:51.5]} 24. axb4 {[%clk 0:00:57.7]} 24... Nc3
{[%clk 0:00:40.4]} 25. Rxd8 {[%clk 0:00:55.4]} 25... Rxd8 {[%clk 0:00:41.3]} 26.
Bxf3 {[%clk 0:00:55.7]} 26... Rb8 {[%clk 0:00:35.8]} 27. Bd2 {[%clk 0:00:46.7]}
27... Rxb4 {[%clk 0:00:32.7]} 28. Bxc3 {[%clk 0:00:45.4]} 28... Rc4 {[%clk
0:00:33.1]} 29. Re1+ {[%clk 0:00:46.1]} 29... Kf5 {[%clk 0:00:26.6]} 30. Re3
{[%clk 0:00:41.4]} 30... Rxc5 {[%clk 0:00:26.8]} 31. Bg4+ {[%clk 0:00:35.4]}
31... Kf4 {[%clk 0:00:25]} 32. Kd2 {[%clk 0:00:33.2]} 32... Rd5+ {[%clk
0:00:13.6]} 33. Ke2 {[%clk 0:00:27.9]} 33... Bxc3 {[%clk 0:00:09.2]} 34. Rxc3
{[%clk 0:00:28.8]} 34... Re5+ {[%clk 0:00:09]} 35. Kf1 {[%clk 0:00:26.2]} 35...
Re7 {[%clk 0:00:08.8]} 36. Rc4+ {[%clk 0:00:25.8]} 36... Kg5 {[%clk 0:00:08.9]}
37. Kg2 {[%clk 0:00:26.5]} 37... g6 {[%clk 0:00:07.7]} 38. hxg6 {[%clk
0:00:26.7]} 38... hxg6 {[%clk 0:00:08.6]} 39. Kg3 {[%clk 0:00:27.4]} 39... Ra7
{[%clk 0:00:07.4]} 40. h4+ {[%clk 0:00:27.2]} 40... Kh6 {[%clk 0:00:07.4]} 41.
Rc6 {[%clk 0:00:28.1]} 41... Ra3+ {[%clk 0:00:07]} 42. f3 {[%clk 0:00:28.6]}
42... Ra7 {[%clk 0:00:06.1]} 43. h5 {[%clk 0:00:28.7]} 43... Rg7 {[%clk
0:00:06.7]} 44. Rxg6+ {[%clk 0:00:28.9]} 44... Rxg6 {[%clk 0:00:07.6]} 45. hxg6
{[%clk 0:00:29.8]} 45... Kxg6 {[%clk 0:00:08]} 46. Kf4 {[%clk 0:00:30.7]} 1-0

[Event "Early-Titled-Tuesday-Blitz-March-12-2024"]
[Site "Chess.com"]
[Date "2024.03.12"]
[Round "8"]
[White "Bkmzzzzz"]
[Black "AlessiaSanteramo"]
[Result "1-0"]
[WhiteElo "2406"]
[BlackElo "2255"]
[TimeControl "180+1"]
[EndTime "9:26:56 PDT"]
[Termination "Bkmzzzzz won on time"]

1. e4 {[%clk 0:03:00.9]} 1... e5 {[%clk 0:02:54.7]} 2. Nf3 {[%clk 0:03:00.3]}
2... Nc6 {[%clk 0:02:54.1]} 3. Nc3 {[%clk 0:03:00.8]} 3... Nf6 {[%clk
0:02:52.1]} 4. d4 {[%clk 0:02:57.2]} 4... exd4 {[%clk 0:02:53]} 5. Nxd4 {[%clk
0:02:57.6]} 5... Bb4 {[%clk 0:02:50.8]} 6. Nxc6 {[%clk 0:02:57.3]} 6... bxc6
{[%clk 0:02:51.7]} 7. Bd3 {[%clk 0:02:57.2]} 7... d5 {[%clk 0:02:48.2]} 8. exd5
{[%clk 0:02:58.1]} 8... O-O {[%clk 0:02:48.1]} 9. O-O {[%clk 0:02:57.9]} 9...
Bg4 {[%clk 0:02:47.4]} 10. f3 {[%clk 0:02:48.4]} 10... Bh5 {[%clk 0:02:47.2]}
11. Bg5 {[%clk 0:02:29.5]} 11... Qd6 {[%clk 0:02:46.6]} 12. Bxf6 {[%clk
0:02:08.4]} 12... Qxf6 {[%clk 0:02:43.9]} 13. Ne4 {[%clk 0:02:07.3]} 13... Qxb2
{[%clk 0:02:17]} 14. dxc6 {[%clk 0:02:01.5]} 14... Bg6 {[%clk 0:02:07.8]} 15.
Kh1 {[%clk 0:01:44.7]} 15... Rfd8 {[%clk 0:01:52.9]} 16. Qe2 {[%clk 0:01:34.6]}
16... Re8 {[%clk 0:01:43.5]} 17. Qf2 {[%clk 0:01:28.6]} 17... a5 {[%clk
0:01:36.6]} 18. a3 {[%clk 0:01:05.3]} 18... Bf8 {[%clk 0:01:22.7]} 19. Qg3
{[%clk 0:00:54.4]} 19... f5 {[%clk 0:01:14.9]} 20. Ng5 {[%clk 0:00:43.3]} 20...
Bd6 {[%clk 0:01:14.2]} 21. Qh3 {[%clk 0:00:40.3]} 21... Qf6 {[%clk 0:01:08.3]}
22. f4 {[%clk 0:00:30.4]} 22... Bxf4 {[%clk 0:01:07.8]} 23. Rxf4 {[%clk
0:00:23.7]} 23... Qxa1+ {[%clk 0:01:06.7]} 24. Rf1 {[%clk 0:00:22]} 24... Re1
{[%clk 0:01:04.1]} 25. Qf3 {[%clk 0:00:16.6]} 25... Rae8 {[%clk 0:01:01.5]} 26.
h4 {[%clk 0:00:15.9]} 26... Rxf1+ {[%clk 0:01:00.6]} 27. Bxf1 {[%clk 0:00:16.8]}
27... Re1 {[%clk 0:01:00.6]} 28. Qd5+ {[%clk 0:00:15.3]} 28... Kh8 {[%clk
0:00:30.6]} 29. Kh2 {[%clk 0:00:12.1]} 29... h6 {[%clk 0:00:13.7]} 30. Bc4
{[%clk 0:00:07.2]} 30... Rh1+ {[%clk 0:00:05.1]} 31. Kg3 {[%clk 0:00:07.1]}
31... Qe1+ {[%clk 0:00:03.8]} 32. Kf3 {[%clk 0:00:05.1]} 32... Qe4+ {[%clk
0:00:02.9]} 33. Nxe4 {[%clk 0:00:04.6]} 33... fxe4+ {[%clk 0:00:03.8]} 34. Kf2
{[%clk 0:00:04.3]} 34... e3+ {[%clk 0:00:04.1]} 35. Kxe3 {[%clk 0:00:04]} 35...
Bh7 {[%clk 0:00:04.1]} 36. Qd8+ {[%clk 0:00:03.5]} 1-0

[Event "Early-Titled-Tuesday-Blitz-March-12-2024"]
[Site "Chess.com"]
[Date "2024.03.12"]
[Round "8"]
[White "Chessdude1987"]
[Black "guillembaches"]
[Result "1/2-1/2"]
[WhiteElo "2410"]
[BlackElo "2539"]
[TimeControl "180+1"]
[EndTime "9:26:58 PDT"]
[Termination "Game drawn by repetition"]

1. e4 {[%clk 0:02:57.1]} 1... d5 {[%clk 0:03:00.6]} 2. Nc3 {[%clk 0:02:51.1]}
2... dxe4 {[%clk 0:03:00.4]} 3. Nxe4 {[%clk 0:02:51.2]} 3... Qd5 {[%clk
0:03:01]} 4. Qe2 {[%clk 0:02:46]} 4... Nc6 {[%clk 0:02:53.9]} 5. Nf3 {[%clk
0:02:35.9]} 5... Bg4 {[%clk 0:02:49.7]} 6. c3 {[%clk 0:02:32.2]} 6... e5 {[%clk
0:02:39.5]} 7. h3 {[%clk 0:02:25.8]} 7... Bh5 {[%clk 0:02:32]} 8. g4 {[%clk
0:02:23.6]} 8... Bg6 {[%clk 0:02:31.6]} 9. d3 {[%clk 0:02:23.7]} 9... O-O-O
{[%clk 0:02:27.1]} 10. Bd2 {[%clk 0:02:14.5]} 10... Nf6 {[%clk 0:02:24.3]} 11.
c4 {[%clk 0:01:37.6]} 11... Qd7 {[%clk 0:02:17.9]} 12. O-O-O {[%clk 0:01:34.4]}
12... Nxe4 {[%clk 0:02:05.5]} 13. dxe4 {[%clk 0:01:34.3]} 13... Nd4 {[%clk
0:02:05.6]} 14. Nxd4 {[%clk 0:01:30.5]} 14... Qxd4 {[%clk 0:01:54.2]} 15. Bg2
{[%clk 0:01:23.9]} 15... Qb6 {[%clk 0:01:10]} 16. Bc3 {[%clk 0:01:00.3]} 16...
Bd6 {[%clk 0:00:49.2]} 17. Rd5 {[%clk 0:00:47]} 17... f6 {[%clk 0:00:49]} 18.
Rhd1 {[%clk 0:00:43.3]} 18... Bf7 {[%clk 0:00:46.3]} 19. R5d2 {[%clk 0:00:32.8]}
19... Bc5 {[%clk 0:00:41.5]} 20. b3 {[%clk 0:00:29.9]} 20... Rxd2 {[%clk
0:00:30.6]} 21. Rxd2 {[%clk 0:00:29.8]} 21... Rd8 {[%clk 0:00:30.3]} 22. Rxd8+
{[%clk 0:00:27.7]} 22... Kxd8 {[%clk 0:00:30.7]} 23. Qd3+ {[%clk 0:00:19.5]}
23... Ke7 {[%clk 0:00:29.3]} 24. f3 {[%clk 0:00:19.5]} 24... Qd6 {[%clk
0:00:29.2]} 25. Qxd6+ {[%clk 0:00:19]} 25... Kxd6 {[%clk 0:00:28.8]} 26. Kd2
{[%clk 0:00:18.8]} 26... Bg1 {[%clk 0:00:26.2]} 27. Bf1 {[%clk 0:00:14.7]} 27...
c5 {[%clk 0:00:24.9]} 28. a3 {[%clk 0:00:13.8]} 28... Bh2 {[%clk 0:00:24.7]} 29.
b4 {[%clk 0:00:12.9]} 29... Bf4+ {[%clk 0:00:24.6]} 30. Kd3 {[%clk 0:00:12.9]}
30... b6 {[%clk 0:00:24.5]} 31. b5 {[%clk 0:00:12.1]} 31... Be8 {[%clk
0:00:24.6]} 32. a4 {[%clk 0:00:11.2]} 32... Bd7 {[%clk 0:00:24]} 33. Bg2 {[%clk
0:00:10.2]} 33... Bc8 {[%clk 0:00:24]} 34. a5 {[%clk 0:00:08.7]} 34... Be6
{[%clk 0:00:23.8]} 35. axb6 {[%clk 0:00:08.2]} 35... axb6 {[%clk 0:00:23.4]} 36.
Be1 {[%clk 0:00:07.9]} 36... Bd7 {[%clk 0:00:23.2]} 37. h4 {[%clk 0:00:07.5]}
37... g6 {[%clk 0:00:23.2]} 38. Bf2 {[%clk 0:00:06.5]} 38... h5 {[%clk
0:00:22.5]} 39. gxh5 {[%clk 0:00:05.5]} 39... gxh5 {[%clk 0:00:22.6]} 40. Be1
{[%clk 0:00:05.2]} 40... Bc8 {[%clk 0:00:22.3]} 41. Bf2 {[%clk 0:00:05.2]} 41...
Be6 {[%clk 0:00:22.3]} 42. Be1 {[%clk 0:00:05.3]} 42... f5 {[%clk 0:00:22.3]}
43. Bf2 {[%clk 0:00:05.3]} 43... fxe4+ {[%clk 0:00:22.4]} 44. fxe4 {[%clk
0:00:05.6]} 44... Bg4 {[%clk 0:00:22.3]} 45. Be1 {[%clk 0:00:05.6]} 45... Bh6
{[%clk 0:00:22.2]} 46. Bf2 {[%clk 0:00:05.5]} 46... Bf4 {[%clk 0:00:22.3]} 47.
Be1 {[%clk 0:00:05.6]} 47... Bh6 {[%clk 0:00:22.3]} 48. Bf2 {[%clk 0:00:05.9]}
48... Bf4 {[%clk 0:00:22.6]} 1/2-1/2

[Event "Early-Titled-Tuesday-Blitz-March-12-2024"]
[Site "Chess.com"]
[Date "2024.03.12"]
[Round "8"]
[White "Sadykov_Ramil"]
[Black "GMSrinath"]
[Result "0-1"]
[WhiteElo "2609"]
[BlackElo "2801"]
[TimeControl "180+1"]
[EndTime "9:27:00 PDT"]
[Termination "GMSrinath won on time"]

1. e4 {[%clk 0:02:30.8]} 1... c5 {[%clk 0:02:56.7]} 2. Nf3 {[%clk 0:02:30.4]}
2... d6 {[%clk 0:02:56.4]} 3. Bb5+ {[%clk 0:02:30.9]} 3... Bd7 {[%clk
0:02:56.5]} 4. Bxd7+ {[%clk 0:02:29.2]} 4... Nxd7 {[%clk 0:02:57.4]} 5. O-O
{[%clk 0:02:15.5]} 5... Ngf6 {[%clk 0:02:57.7]} 6. Re1 {[%clk 0:02:14.6]} 6...
e6 {[%clk 0:02:57.5]} 7. c3 {[%clk 0:02:00.5]} 7... Be7 {[%clk 0:02:52.4]} 8. d4
{[%clk 0:01:56.8]} 8... O-O {[%clk 0:02:52.6]} 9. Qd3 {[%clk 0:01:27.4]} 9...
Rc8 {[%clk 0:02:46.8]} 10. h3 {[%clk 0:01:23.6]} 10... Qc7 {[%clk 0:02:39.2]}
11. Be3 {[%clk 0:01:22]} 11... cxd4 {[%clk 0:02:38]} 12. cxd4 {[%clk 0:01:21.6]}
12... Qc2 {[%clk 0:02:38.3]} 13. Qxc2 {[%clk 0:01:03.2]} 13... Rxc2 {[%clk
0:02:39.2]} 14. Nc3 {[%clk 0:00:51.6]} 14... Rxb2 {[%clk 0:02:36]} 15. Reb1
{[%clk 0:00:49.5]} 15... Rc2 {[%clk 0:02:23.7]} 16. Rxb7 {[%clk 0:00:26]} 16...
Rxc3 {[%clk 0:01:47.8]} 17. e5 {[%clk 0:00:26.1]} 17... dxe5 {[%clk 0:01:48.5]}
18. dxe5 {[%clk 0:00:25.9]} 18... Nd5 {[%clk 0:01:11.7]} 19. Rxd7 {[%clk
0:00:23.4]} 19... a5 {[%clk 0:01:12.4]} 20. Bd2 {[%clk 0:00:14.9]} 20... Rc2
{[%clk 0:00:52.8]} 21. Bxa5 {[%clk 0:00:12.7]} 21... Ra8 {[%clk 0:00:53.4]} 22.
Be1 {[%clk 0:00:10.4]} 22... Rcxa2 {[%clk 0:00:46.2]} 23. Rxa2 {[%clk
0:00:09.2]} 23... Rxa2 {[%clk 0:00:47.1]} 24. g3 {[%clk 0:00:06.7]} 24... h5
{[%clk 0:00:43.9]} 25. h4 {[%clk 0:00:05.8]} 25... Ra3 {[%clk 0:00:41.4]} 26.
Kg2 {[%clk 0:00:05.8]} 26... Ra2 {[%clk 0:00:35.4]} 27. Bd2 {[%clk 0:00:04.3]}
27... f6 {[%clk 0:00:27.3]} 28. exf6 {[%clk 0:00:01.9]} 28... gxf6 {[%clk
0:00:28.2]} 29. Rb7 {[%clk 0:00:02.4]} 29... Kf7 {[%clk 0:00:27.6]} 30. Kf1
{[%clk 0:00:02.6]} 30... Kg6 {[%clk 0:00:27.9]} 31. Kg2 {[%clk 0:00:02.4]} 31...
Bc5 {[%clk 0:00:27.8]} 32. Kf1 {[%clk 0:00:02.2]} 32... e5 {[%clk 0:00:28]} 33.
Be1 {[%clk 0:00:01.6]} 33... e4 {[%clk 0:00:27]} 34. Nd2 {[%clk 0:00:01.6]}
34... e3 {[%clk 0:00:27.6]} 35. Ne4 {[%clk 0:00:01.8]} 35... e2+ {[%clk
0:00:11.5]} 36. Kg2 {[%clk 0:00:01.4]} 36... Ra1 {[%clk 0:00:12.4]} 0-1

[Event "Early-Titled-Tuesday-Blitz-March-12-2024"]
[Site "Chess.com"]
[Date "2024.03.12"]
[Round "8"]
[White "HATilay"]
[Black "EpicPlayz282"]
[Result "0-1"]
[WhiteElo "2687"]
[BlackElo "2393"]
[TimeControl "180+1"]
[EndTime "9:27:00 PDT"]
[Termination "EpicPlayz282 won by checkmate"]

1. e4 {[%clk 0:03:00.9]} 1... e5 {[%clk 0:02:58]} 2. Nf3 {[%clk 0:03:01.3]} 2...
Nc6 {[%clk 0:02:57.9]} 3. Bb5 {[%clk 0:03:01.9]} 3... a6 {[%clk 0:02:58]} 4. Ba4
{[%clk 0:03:02.6]} 4... Nge7 {[%clk 0:02:57.8]} 5. O-O {[%clk 0:02:59.8]} 5...
Ng6 {[%clk 0:02:58]} 6. c3 {[%clk 0:03:00.4]} 6... d5 {[%clk 0:02:52.5]} 7. d3
{[%clk 0:02:53.2]} 7... Be7 {[%clk 0:02:41.1]} 8. h3 {[%clk 0:02:50.9]} 8... O-O
{[%clk 0:02:40.9]} 9. Nbd2 {[%clk 0:02:51.5]} 9... b5 {[%clk 0:02:31.3]} 10. Bb3
{[%clk 0:02:50.8]} 10... dxe4 {[%clk 0:02:31.2]} 11. Nxe4 {[%clk 0:02:43.2]}
11... Na5 {[%clk 0:02:25.4]} 12. Bc2 {[%clk 0:02:40.1]} 12... Bb7 {[%clk
0:02:25.2]} 13. a4 {[%clk 0:02:20.6]} 13... b4 {[%clk 0:02:23.7]} 14. Bd2 {[%clk
0:02:13.9]} 14... Nc6 {[%clk 0:02:02.4]} 15. a5 {[%clk 0:02:11.2]} 15... Qd5
{[%clk 0:01:58.2]} 16. Bg5 {[%clk 0:01:38.6]} 16... Bxg5 {[%clk 0:01:51.6]} 17.
Bb3 {[%clk 0:01:38.8]} 17... Qd8 {[%clk 0:01:18.1]} 18. Nfxg5 {[%clk 0:01:38]}
18... h6 {[%clk 0:01:09.3]} 19. Qh5 {[%clk 0:00:51.3]} 19... Nce7 {[%clk
0:01:03.3]} 20. f4 {[%clk 0:00:21.4]} 20... Bxe4 {[%clk 0:00:36.4]} 21. dxe4
{[%clk 0:00:17.5]} 21... hxg5 {[%clk 0:00:27.6]} 22. fxg5 {[%clk 0:00:17.9]}
22... Nf4 {[%clk 0:00:17.3]} 23. Rxf4 {[%clk 0:00:10.3]} 23... exf4 {[%clk
0:00:17.6]} 24. g6 {[%clk 0:00:10.9]} 24... Nxg6 {[%clk 0:00:18.1]} 25. Qxg6
{[%clk 0:00:11.2]} 25... bxc3 {[%clk 0:00:15.5]} 26. bxc3 {[%clk 0:00:09.5]}
26... Rb8 {[%clk 0:00:14.9]} 27. Bc4 {[%clk 0:00:09.6]} 27... Qe7 {[%clk
0:00:12.7]} 28. Qc6 {[%clk 0:00:09.1]} 28... Rfe8 {[%clk 0:00:10.7]} 29. Bd5
{[%clk 0:00:09.4]} 29... Rb2 {[%clk 0:00:07.6]} 30. Rf1 {[%clk 0:00:09.9]} 30...
Rf8 {[%clk 0:00:07.2]} 31. Rxf4 {[%clk 0:00:08.1]} 31... Qg5 {[%clk 0:00:05.9]}
32. Rg4 {[%clk 0:00:07.1]} 32... Qe5 {[%clk 0:00:06]} 33. Qc5 {[%clk 0:00:04]}
33... Rb1+ {[%clk 0:00:06.1]} 34. Kf2 {[%clk 0:00:04.5]} 34... Qf6+ {[%clk
0:00:05.5]} 35. Kg3 {[%clk 0:00:03.9]} 35... Qe5+ {[%clk 0:00:06.1]} 36. Kf2
{[%clk 0:00:04.1]} 36... Rb2+ {[%clk 0:00:03.5]} 37. Ke1 {[%clk 0:00:02.8]}
37... Qh2 {[%clk 0:00:03.5]} 38. Qe3 {[%clk 0:00:02.3]} 38... Qh1+ {[%clk
0:00:03.9]} 39. Qg1 {[%clk 0:00:02.1]} 39... Qxg1# {[%clk 0:00:04.5]} 0-1

[Event "Early-Titled-Tuesday-Blitz-March-12-2024"]
[Site "Chess.com"]
[Date "2024.03.12"]
[Round "8"]
[White "killer_dreams"]
[Black "Yeritsyaan"]
[Result "0-1"]
[WhiteElo "2506"]
[BlackElo "2640"]
[TimeControl "180+1"]
[EndTime "9:27:01 PDT"]
[Termination "Yeritsyaan won on time"]

1. e4 {[%clk 0:03:00.9]} 1... g6 {[%clk 0:02:58.4]} 2. d4 {[%clk 0:03:00.3]}
2... Bg7 {[%clk 0:02:59.1]} 3. Nc3 {[%clk 0:03:00.2]} 3... c6 {[%clk 0:02:59.8]}
4. Nf3 {[%clk 0:02:57.5]} 4... d5 {[%clk 0:03:00.4]} 5. Be2 {[%clk 0:02:54.8]}
5... dxe4 {[%clk 0:02:59.8]} 6. Nxe4 {[%clk 0:02:55.7]} 6... Nf6 {[%clk
0:03:00.4]} 7. Nxf6+ {[%clk 0:02:54.9]} 7... Bxf6 {[%clk 0:03:01.3]} 8. O-O
{[%clk 0:02:54.6]} 8... O-O {[%clk 0:03:01.3]} 9. Bh6 {[%clk 0:02:53]} 9... Re8
{[%clk 0:03:01.5]} 10. Qd2 {[%clk 0:02:51.4]} 10... Bg4 {[%clk 0:03:01.4]} 11.
Rad1 {[%clk 0:02:50.4]} 11... Nd7 {[%clk 0:03:01]} 12. c4 {[%clk 0:02:50]} 12...
Nb6 {[%clk 0:02:59.6]} 13. b3 {[%clk 0:02:48.8]} 13... a5 {[%clk 0:02:59.6]} 14.
h3 {[%clk 0:02:46.7]} 14... Bf5 {[%clk 0:02:58.6]} 15. d5 {[%clk 0:02:36]} 15...
cxd5 {[%clk 0:02:58]} 16. cxd5 {[%clk 0:02:33.9]} 16... Qd7 {[%clk 0:02:54.1]}
17. Be3 {[%clk 0:02:27.8]} 17... Qd6 {[%clk 0:02:37.7]} 18. Nd4 {[%clk
0:02:20.2]} 18... Bd7 {[%clk 0:02:30.8]} 19. Bf3 {[%clk 0:02:02.2]} 19... Red8
{[%clk 0:02:25.1]} 20. Ne2 {[%clk 0:01:07.9]} 20... Bb5 {[%clk 0:02:19.6]} 21.
a4 {[%clk 0:01:07.5]} 21... Ba6 {[%clk 0:02:14.3]} 22. Rfe1 {[%clk 0:01:03.8]}
22... Rac8 {[%clk 0:02:09.6]} 23. Qxa5 {[%clk 0:01:00]} 23... Nd7 {[%clk
0:02:02.8]} 24. Nd4 {[%clk 0:00:55.6]} 24... Ne5 {[%clk 0:01:57.9]} 25. Be4
{[%clk 0:00:48]} 25... Nd7 {[%clk 0:01:18.8]} 26. Nb5 {[%clk 0:00:43.8]} 26...
Bxb5 {[%clk 0:01:10.4]} 27. Qxb5 {[%clk 0:00:44.7]} 27... Nc5 {[%clk 0:01:07.4]}
28. Bf3 {[%clk 0:00:38.8]} 28... Na6 {[%clk 0:00:52.1]} 29. Bb6 {[%clk
0:00:24.1]} 29... Nc7 {[%clk 0:00:49.9]} 30. Qa5 {[%clk 0:00:20.5]} 30... Bc3
{[%clk 0:00:34.5]} 31. Qxc3 {[%clk 0:00:17.7]} 31... Qxb6 {[%clk 0:00:32.4]} 32.
Qb2 {[%clk 0:00:15.7]} 32... Qd6 {[%clk 0:00:30.6]} 33. Re3 {[%clk 0:00:14.1]}
33... Na6 {[%clk 0:00:29.8]} 34. Rde1 {[%clk 0:00:14]} 34... Rc7 {[%clk
0:00:30.5]} 35. Qe2 {[%clk 0:00:13.4]} 35... Kf8 {[%clk 0:00:29.9]} 36. Qd3
{[%clk 0:00:12.1]} 36... Rdc8 {[%clk 0:00:28.4]} 37. Qd4 {[%clk 0:00:12.6]}
37... Kg8 {[%clk 0:00:28.1]} 38. Bg4 {[%clk 0:00:13.1]} 38... Rd8 {[%clk
0:00:26.7]} 39. h4 {[%clk 0:00:13.2]} 39... Nb4 {[%clk 0:00:23.4]} 40. Rg3
{[%clk 0:00:07.6]} 40... Nc2 {[%clk 0:00:23]} 41. Qd2 {[%clk 0:00:07.1]} 41...
Nxe1 {[%clk 0:00:23.1]} 42. Qxe1 {[%clk 0:00:08]} 42... Qf4 {[%clk 0:00:22.1]}
43. h5 {[%clk 0:00:07.8]} 43... Rc1 {[%clk 0:00:22]} 44. Bd1 {[%clk 0:00:07.8]}
44... Rxd5 {[%clk 0:00:21.2]} 0-1

[Event "Early-Titled-Tuesday-Blitz-March-12-2024"]
[Site "Chess.com"]
[Date "2024.03.12"]
[Round "8"]
[White "crazyluzhinTh3"]
[Black "Witik"]
[Result "1/2-1/2"]
[WhiteElo "2580"]
[BlackElo "2743"]
[TimeControl "180+1"]
[EndTime "9:27:02 PDT"]
[Termination "Game drawn by repetition"]

1. e4 {[%clk 0:03:00.9]} 1... c6 {[%clk 0:03:00]} 2. d4 {[%clk 0:03:00.4]} 2...
d5 {[%clk 0:03:00.6]} 3. e5 {[%clk 0:03:01.1]} 3... Bf5 {[%clk 0:03:00.7]} 4.
Nf3 {[%clk 0:03:01.8]} 4... e6 {[%clk 0:03:01.1]} 5. Be2 {[%clk 0:03:02.5]} 5...
c5 {[%clk 0:03:01.4]} 6. Be3 {[%clk 0:03:02.3]} 6... cxd4 {[%clk 0:03:01.2]} 7.
Nxd4 {[%clk 0:03:03.2]} 7... Ne7 {[%clk 0:03:01.8]} 8. O-O {[%clk 0:03:02.9]}
8... Nbc6 {[%clk 0:03:01.9]} 9. c4 {[%clk 0:03:03.5]} 9... dxc4 {[%clk 0:03:01]}
10. Qa4 {[%clk 0:03:01.7]} 10... Qa5 {[%clk 0:02:41.4]} 11. Qxa5 {[%clk
0:02:56]} 11... Nxa5 {[%clk 0:02:41.6]} 12. Na3 {[%clk 0:02:56.8]} 12... Bd3
{[%clk 0:02:36.5]} 13. Bxd3 {[%clk 0:02:42.6]} 13... cxd3 {[%clk 0:02:36.5]} 14.
Rfd1 {[%clk 0:02:43.5]} 14... Nd5 {[%clk 0:02:35]} 15. Rxd3 {[%clk 0:02:40.8]}
15... Bxa3 {[%clk 0:02:34.9]} 16. bxa3 {[%clk 0:02:36]} 16... Nc4 {[%clk
0:02:23.8]} 17. Nb5 {[%clk 0:02:27.2]} 17... O-O {[%clk 0:02:15.4]} 18. Bd4
{[%clk 0:02:20]} 18... a6 {[%clk 0:01:48.2]} 19. Nd6 {[%clk 0:01:59.4]} 19...
Nxd6 {[%clk 0:01:48]} 20. exd6 {[%clk 0:02:00.3]} 20... Rfd8 {[%clk 0:01:48.7]}
21. Be5 {[%clk 0:01:51.9]} 21... Rac8 {[%clk 0:01:34.6]} 22. h4 {[%clk
0:01:43.3]} 22... b5 {[%clk 0:01:30]} 23. Rad1 {[%clk 0:01:31]} 23... Rd7 {[%clk
0:01:22.1]} 24. a4 {[%clk 0:01:24.5]} 24... f6 {[%clk 0:01:12.3]} 25. Bg3 {[%clk
0:01:24.2]} 25... bxa4 {[%clk 0:01:09.8]} 26. Rd4 {[%clk 0:01:13]} 26... Rc5
{[%clk 0:00:58.6]} 27. Kh2 {[%clk 0:01:06]} 27... Kf7 {[%clk 0:00:41.2]} 28.
R1d2 {[%clk 0:01:02.7]} 28... a3 {[%clk 0:00:32.6]} 29. Ra4 {[%clk 0:00:59.4]}
29... Nb6 {[%clk 0:00:22.1]} 30. Rb4 {[%clk 0:00:53.4]} 30... Nd5 {[%clk
0:00:15.4]} 31. Ra4 {[%clk 0:00:52.6]} 31... e5 {[%clk 0:00:15.1]} 32. Rxa6
{[%clk 0:00:46.2]} 32... Ke6 {[%clk 0:00:15.3]} 33. Rxa3 {[%clk 0:00:44.3]}
33... Rxd6 {[%clk 0:00:15.8]} 34. Ra7 {[%clk 0:00:44.6]} 34... Rd7 {[%clk
0:00:12.1]} 35. Ra6+ {[%clk 0:00:36]} 35... Kf5 {[%clk 0:00:12.3]} 36. Rd3
{[%clk 0:00:31.2]} 36... h5 {[%clk 0:00:10.5]} 37. a4 {[%clk 0:00:28.3]} 37...
Rcc7 {[%clk 0:00:04.1]} 38. Rf3+ {[%clk 0:00:26.1]} 38... Kg6 {[%clk 0:00:04.1]}
39. Bxe5 {[%clk 0:00:25.7]} 39... Ra7 {[%clk 0:00:04.6]} 40. Rxa7 {[%clk
0:00:21.9]} 40... Rxa7 {[%clk 0:00:05.1]} 41. Bg3 {[%clk 0:00:22.6]} 41... Rxa4
{[%clk 0:00:05.5]} 42. Rd3 {[%clk 0:00:23.2]} 42... Ne7 {[%clk 0:00:05.9]} 43.
Kh3 {[%clk 0:00:19.6]} 43... Nf5 {[%clk 0:00:06.3]} 44. Rb3 {[%clk 0:00:19.9]}
44... Ra1 {[%clk 0:00:06.6]} 45. Kh2 {[%clk 0:00:19.7]} 45... Ra4 {[%clk
0:00:06.4]} 46. Kh3 {[%clk 0:00:19.7]} 46... Nd4 {[%clk 0:00:05.6]} 47. Rd3
{[%clk 0:00:19.3]} 47... Nf5 {[%clk 0:00:06.1]} 48. Rb3 {[%clk 0:00:18.4]}
1/2-1/2